[Event "Srdja Dragasevic Memorial-A 2024"]
[Site "Cetinje"]
[Date "2024.06.23"]
[Round "2.16"]
[White "Slugin, Alexander"]
[Black "Ivanovic, Bozidar"]
[Result "1-0"]
[ECO "A46"]
[WhiteElo "2157"]
[BlackElo "2371"]
[Annotator "RC"]
[PlyCount "73"]
[EventDate "2024.06.23"]
[EventType "swiss"]
[EventCountry "MNE"]
[SourceTitle "playchess.com"]
[Source "ChessBase"]
[SourceQuality "1"]
[TimeControl "40/5400+30:1800+30"]

1. d4 {[%emt 0:20:17]} Nf6 {[%emt 0:00:50]} 2. Nf3 {[%emt 0:00:08]} c5 {[%emt 0:05:16]} 3. Nc3 {[%emt 0:00:06]} cxd4 {[%emt 0:02:44]} 4. Qxd4 {[%emt 0:00:16]} Nc6 {[%emt 0:04:07]} 5. Qh4 {[%emt 0:00:05]} e6 {[%emt 0:20:21]} 6. Bg5 {[%emt 0:00:07]} Be7 {[%emt 0:00:16]} 7. O-O-O {[%emt 0:00:08]} a6 {[%emt 0:04:14]} 8. e4 {[%emt 0:00:41]} Qc7 {[%emt 0:03:03]} 9. Bd3 {[%emt 0:01:39]} d6 {[%emt 0:00:36]} 10. Rhe1 {[%emt 0:00:51]} Ne5 {[%emt 0:08:16]} 11. h3 {[%emt 0:06:27]} Ng6 {[%emt 0:13:15]} 12. Qg3 {[%emt 0:00:17]} Nh5 {[%emt 0:01:31]} 13. Qh2 {[%emt 0:00:33]} Bxg5+ {[%emt 0:13:09]} 14. Nxg5 {[%emt 0:00:14]} h6 {[%emt 0:08:09]} 15. Nf3 {[%emt 0:00:47]} Ne5 {[%emt 0:01:37]} 16. Be2 {[%emt 0:00:30]} Nf6 {[%emt 0:03:59]} 17. Nd4 {[%emt 0:01:36]} Bd7 {[%emt 0:04:20]} 18. f4 {[%emt 0:00:54]} Ng6 {[%emt 0:00:19]} 19. Bf3 {[%emt 0:05:56]} e5 {[%emt 0:01:54]} 20. Nf5 {[%emt 0:00:30]} O-O {[%emt 0:00:03]} 21. Nxd6 {[%emt 0:10:24]} Nxf4 {[%emt 0:00:25]} 22. h4 {[%emt 0:00:23]} Rad8 {[%emt 0:00:40]} 23. g3 {[%emt 0:00:19]} Ne6 {[%emt 0:01:33]} 24. Nf5 {[%emt 0:00:48]} Bc8 {[%emt 0:00:56]} 25. g4 {[%emt 0:03:00]} Nf4 {[%emt 0:00:49]} 26. g5 {[%emt 0:00:26]} Ne8 {[%emt 0:00:37]} 27. gxh6 {[%emt 0:01:20]} Rxd1+ {[%emt 0:00:06]} 28. Rxd1 {[%emt 0:01:16]} Bxf5 {[%emt 0:00:04]} 29. hxg7 {[%emt 0:00:25]} Nxg7 {[%emt 0:00:27]} 30. exf5 {[%emt 0:00:20]} e4 {[%emt 0:00:04]} 31. Qg1 {[%emt 0:01:39]} exf3 {[%emt 0:01:36]} 32. f6 {[%emt 0:00:25]} Ng2 {[%emt 0:00:31]} 33. Nd5 {[%emt 0:05:02]} Qe5 {[%emt 0:00:06]} 34. Qc5 {[%emt 0:00:39]} Qb8 {[%emt 0:00:50]} 35. fxg7 {[%emt 0:03:50]} Kxg7 {[%emt 0:00:06]} 36. Qc3+ {[%emt 0:00:18]} f6 {[%emt 0:01:04]} 37. Qxf3 {[%emt 0:00:21]} 1-0

[Event "Srdja Dragasevic Memorial-A 2024"]
[Site "Cetinje"]
[Date "2024.06.23"]
[Round "2.17"]
[White "Damljanovic, Branko"]
[Black "Pogorelskikh, Sergey"]
[Result "1-0"]
[ECO "E06"]
[WhiteElo "2364"]
[BlackElo "2196"]
[Annotator "RC"]
[PlyCount "89"]
[EventDate "2024.06.23"]
[EventType "swiss"]
[EventCountry "MNE"]
[SourceTitle "playchess.com"]
[Source "ChessBase"]
[SourceQuality "1"]
[TimeControl "40/5400+30:1800+30"]

1. d4 {[%emt 0:00:30]} d5 {[%emt 0:04:59]} 2. c4 {[%emt 0:00:17]} e6 {[%emt 0:00:08]} 3. Nf3 {[%emt 0:00:06]} c6 {[%emt 0:00:55]} 4. g3 {[%emt 0:01:27]} dxc4 {[%emt 0:02:24]} 5. Bg2 {[%emt 0:00:03]} Nf6 {[%emt 0:03:59]} 6. Ne5 {[%emt 0:02:02]} Be7 {[%emt 0:04:25]} 7. O-O {[%emt 0:01:18]} O-O {[%emt 0:00:11]} 8. Nc3 {[%emt 0:00:53]} Nbd7 {[%emt 0:03:24]} 9. Nxc4 {[%emt 0:00:05]} Nd5 {[%emt 0:02:37]} 10. e4 {[%emt 0:02:50]} N5b6 {[%emt 0:01:04]} 11. Nxb6 {[%emt 0:04:07]} axb6 {[%emt 0:01:37]} 12. Bf4 {[%emt 0:01:20]} b5 {[%emt 0:03:18]} 13. Qc2 {[%emt 0:00:34]} b4 {[%emt 0:05:32]} 14. Ne2 {[%emt 0:00:08]} Qa5 {[%emt 0:05:41]} 15. Rfd1 {[%emt 0:03:36]} e5 {[%emt 0:03:59]} 16. Be3 {[%emt 0:00:09]} exd4 {[%emt 0:05:12]} 17. Nxd4 {[%emt 0:00:32]} Nc5 {[%emt 0:09:48]} 18. h3 {[%emt 0:06:54]} Rd8 {[%emt 0:04:00]} 19. a3 {[%emt 0:03:52]} Be6 {[%emt 0:10:15]} 20. Kh2 {[%emt 0:11:16]} bxa3 {[%emt 0:04:01]} 21. Rxa3 {[%emt 0:02:54]} Qb4 {[%emt 0:02:54]} 22. Rxa8 {[%emt 0:06:16]} Rxa8 {[%emt 0:00:11]} 23. e5 {[%emt 0:00:12]} g6 {[%emt 0:16:08]} 24. Bxc6 {[%emt 0:21:56]} Rc8 {[%emt 0:03:30]} 25. Bg2 {[%emt 0:02:03]} Nb3 {[%emt 0:00:56]} 26. Qe2 {[%emt 0:00:24]} Nxd4 {[%emt 0:00:21]} 27. Rxd4 {[%emt 0:01:45]} Qb3 {[%emt 0:00:26]} 28. Qd2 {[%emt 0:01:56]} h5 {[%emt 0:01:18]} 29. Rd3 {[%emt 0:01:37]} Qb5 {[%emt 0:00:23]} 30. Bd4 {[%emt 0:02:42]} b6 {[%emt 0:01:54]} 31. Bc3 {[%emt 0:00:34]} Qc5 {[%emt 0:00:00]} 32. Bd5 {[%emt 0:05:41]} Bxd5 {[%emt 0:00:00]} 33. Rxd5 {[%emt 0:00:02]} Qc6 {[%emt 0:00:00]} 34. Rd7 {[%emt 0:01:32]} Qe6 {[%emt 0:00:26]} 35. Kg2 {[%emt 0:03:39]} b5 {[%emt 0:01:05]} 36. Qd5 {[%emt 0:00:56]} Qxd5+ {[%emt 0:00:32]} 37. Rxd5 {[%emt 0:00:01]} b4 {[%emt 0:00:35]} 38. Bd4 {[%emt 0:00:02]} Kf8 {[%emt 0:00:47]} 39. h4 {[%emt 0:01:11]} Ke8 {[%emt 0:00:02]} 40. Kf3 {[%emt 0:00:08]} Rc2 {[%emt 0:00:00]} 41. Ke3 {[%emt 0:01:50]} g5 {[%emt 0:05:57]} 42. Kd3 {[%emt 0:06:31]} Rc1 {[%emt 0:00:23]} 43. hxg5 {[%emt 0:00:38]} Bxg5 {[%emt 0:00:09]} 44. e6 {[%emt 0:01:00]} Rd1+ {[%emt 0:10:40]} 45. Kc4 {[%emt 0:00:28]} 1-0

[Event "Srdja Dragasevic Memorial-A 2024"]
[Site "Cetinje"]
[Date "2024.06.23"]
[Round "2.18"]
[White "Ramaj, Ergit"]
[Black "Sukovic, Andrej"]
[Result "0-1"]
[ECO "B90"]
[WhiteElo "2128"]
[BlackElo "2350"]
[Annotator "RC"]
[PlyCount "80"]
[EventDate "2024.06.23"]
[EventType "swiss"]
[EventCountry "MNE"]
[SourceTitle "playchess.com"]
[Source "ChessBase"]
[SourceQuality "1"]
[TimeControl "40/5400+30:1800+30"]

1. e4 {[%emt 0:00:05]} c5 {[%emt 0:14:02]} 2. Nf3 {[%emt 0:00:27]} d6 {[%emt 0:00:07]} 3. d4 {[%emt 0:01:06]} cxd4 {[%emt 0:00:38]} 4. Nxd4 {[%emt 0:00:15]} Nf6 {[%emt 0:00:08]} 5. Nc3 {[%emt 0:00:23]} a6 {[%emt 0:00:05]} 6. a3 {[%emt 0:04:51]} e5 {[%emt 0:01:38]} 7. Nf5 {[%emt 0:03:12]} d5 {[%emt 0:09:17]} 8. Bg5 {[%emt 0:00:32]} d4 {[%emt 0:08:07]} 9. Bxf6 {[%emt 0:00:12]} Qxf6 {[%emt 0:10:00]} 10. Nd5 {[%emt 0:01:05]} Qd8 {[%emt 0:01:23]} 11. Qg4 {[%emt 0:00:39]} Bxf5 {[%emt 0:00:08]} 12. Qxf5 {[%emt 0:00:09]} Bd6 {[%emt 0:03:25]} 13. Bc4 {[%emt 0:04:06]} O-O {[%emt 0:01:23]} 14. Qf3 {[%emt 0:06:45]} Nc6 {[%emt 0:01:48]} 15. h4 {[%emt 0:18:33]} Ne7 {[%emt 0:09:42]} 16. Nxe7+ {[%emt 0:04:22]} Qxe7 {[%emt 0:02:58]} 17. g4 {[%emt 0:01:55]} b5 {[%emt 0:07:23]} 18. Bb3 {[%emt 0:03:04]} a5 {[%emt 0:03:14]} 19. a4 {[%emt 0:00:38]} bxa4 {[%emt 0:00:31]} 20. Rxa4 {[%emt 0:00:25]} Kh8 {[%emt 0:05:35]} 21. Kf1 {[%emt 0:04:49]} Bc5 {[%emt 0:00:31]} 22. Kg2 {[%emt 0:03:27]} Ra6 {[%emt 0:00:38]} 23. Rha1 {[%emt 0:10:36]} Rf6 {[%emt 0:02:01]} 24. Qd3 {[%emt 0:02:38]} Rf4 {[%emt 0:00:07]} 25. f3 {[%emt 0:07:25]} f5 {[%emt 0:00:19]} 26. gxf5 {[%emt 0:01:48]} Rxh4 {[%emt 0:00:11]} 27. Rg1 {[%emt 0:01:16]} Qg5+ {[%emt 0:03:28]} 28. Kf1 {[%emt 0:00:45]} Qc1+ {[%emt 0:00:03]} 29. Kg2 {[%emt 0:01:09]} Qh6 {[%emt 0:00:05]} 30. Kf1 {[%emt 0:14:32]} Rh2 {[%emt 0:00:09]} 31. Ra1 {[%emt 0:01:00]} Bb4 {[%emt 0:02:14]} 32. c3 {[%emt 0:01:18]} dxc3 {[%emt 0:01:01]} 33. bxc3 {[%emt 0:00:27]} Bc5 {[%emt 0:00:14]} 34. Ra2 {[%emt 0:01:44]} Qh3+ {[%emt 0:02:11]} 35. Ke1 {[%emt 0:00:48]} Qh4+ {[%emt 0:02:21]} 36. Kd1 {[%emt 0:00:23]} Bxg1 {[%emt 0:01:07]} 37. Rxh2 {[%emt 0:01:13]} Bxh2 {[%emt 0:00:10]} 38. Qb5 {[%emt 0:00:18]} Qf2 {[%emt 0:01:11]} 39. Bd5 {[%emt 0:00:00]} Bf4 {[%emt 0:00:34]} 40. Qd3 {[%emt 0:00:00]} Qe3 {[%emt 0:00:00]} 0-1